[Event "Titled Tuesday Blitz November 15 Early 2022"]
[White "Hajiyev, Kanan"]
[Black "Yeremyan, Alen"]
[WhiteFideId "13404148"]
[BlackFideId "13308998"]
[WhiteElo "2118"]
[BlackElo "2159"]
[Result "1/2-1/2"]
[Round "10"]
[TimeControl "180+1"]
[Date "2022.11.16"]
[WhiteClock "0:00:06"]
[BlackClock "0:00:05"]

1. d4 {[%clk 0:02:46]}  Nf6 {[%clk 0:02:59]} 2. Nf3 {[%clk 0:02:46]}  g6 {[%clk 0:02:59]} 3. g3 {[%clk 0:02:45]}  Bg7 {[%clk 0:02:57]} 4. Bg2 {[%clk 0:02:46]}  O-O {[%clk 0:02:57]} 5. O-O {[%clk 0:02:47]}  d5 {[%clk 0:02:58]} 6. c4 {[%clk 0:02:46]}  dxc4 {[%clk 0:02:58]} 7. Na3 {[%clk 0:02:46]}  a5 {[%clk 0:02:58]} 8. Nxc4 {[%clk 0:02:45]}  a4 {[%clk 0:02:56]} 9. Re1 {[%clk 0:02:34]}  Be6 {[%clk 0:02:54]} 10. Qc2 {[%clk 0:02:19]}  c6 {[%clk 0:02:52]} 11. e4 {[%clk 0:02:12]}  Na6 {[%clk 0:02:50]} 12. a3 {[%clk 0:02:05]}  h6 {[%clk 0:02:42]} 13. h3 {[%clk 0:02:02]}  Nc7 {[%clk 0:02:38]} 14. Bf4 {[%clk 0:01:48]}  Nb5 {[%clk 0:02:36]} 15. Rad1 {[%clk 0:01:46]}  Bxc4 {[%clk 0:02:25]} 16. Qxc4 {[%clk 0:01:45]}  Nd7 {[%clk 0:02:25]} 17. h4 {[%clk 0:01:38]}  e6 {[%clk 0:02:21]} 18. Qc1 {[%clk 0:01:28]}  Kh7 {[%clk 0:02:20]} 19. Bf1 {[%clk 0:01:15]}  Qb6 {[%clk 0:02:18]} 20. Qc4 {[%clk 0:01:11]}  Rfd8 {[%clk 0:02:17]} 21. Rd2 {[%clk 0:01:04]}  Nf6 {[%clk 0:02:16]} 22. Be5 {[%clk 0:00:56]}  Ng4 {[%clk 0:02:14]} 23. Bxg7 {[%clk 0:00:56]}  Kxg7 {[%clk 0:02:15]} 24. Red1 {[%clk 0:00:54]}  Rd7 {[%clk 0:02:13]} 25. h5 {[%clk 0:00:39]}  g5 {[%clk 0:02:09]} 26. e5 {[%clk 0:00:36]}  Rd5 {[%clk 0:01:27]} 27. Bh3 {[%clk 0:00:33]}  f5 {[%clk 0:01:27]} 28. exf6+ {[%clk 0:00:33]}  Nxf6 {[%clk 0:01:28]} 29. Bxe6 {[%clk 0:00:33]}  Rd6 {[%clk 0:01:28]} 30. Bf5 {[%clk 0:00:24]}  Rad8 {[%clk 0:01:29]} 31. Bb1 {[%clk 0:00:23]}  Nxh5 {[%clk 0:01:22]} 32. Qxa4 {[%clk 0:00:23]}  g4 {[%clk 0:01:15]} 33. Nh4 {[%clk 0:00:22]}  Kg8 {[%clk 0:01:03]} 34. d5 {[%clk 0:00:22]}  Nf6 {[%clk 0:01:00]} 35. Nf5 {[%clk 0:00:19]}  R6d7 {[%clk 0:00:46]} 36. Nxh6+ {[%clk 0:00:19]}  Kf8 {[%clk 0:00:39]} 37. Nxg4 {[%clk 0:00:10]}  Rf7 {[%clk 0:00:22]} 38. Nxf6 {[%clk 0:00:08]}  Rxf6 {[%clk 0:00:23]} 39. dxc6 {[%clk 0:00:04]}  Rxd2 {[%clk 0:00:24]} 40. Rxd2 {[%clk 0:00:05]}  Qxc6 {[%clk 0:00:22]} 41. Qb4+ {[%clk 0:00:05]}  Kg7 {[%clk 0:00:20]} 42. Be4 {[%clk 0:00:05]}  Qc1+ {[%clk 0:00:19]} 43. Kg2 {[%clk 0:00:05]}  Rf7 {[%clk 0:00:13]} 44. Qxb5 {[%clk 0:00:02]}  Qxd2 {[%clk 0:00:13]} 45. Qe5+ {[%clk 0:00:03]}  Kf8 {[%clk 0:00:13]} 46. Qh8+ {[%clk 0:00:03]}  Ke7 {[%clk 0:00:13]} 47. Qe5+ {[%clk 0:00:04]}  Kf8 {[%clk 0:00:13]} 48. Qh8+ {[%clk 0:00:04]}  Ke7 {[%clk 0:00:14]} 49. Qe5+ {[%clk 0:00:04]}  Kd7 {[%clk 0:00:14]} 50. Bf5+ {[%clk 0:00:04]}  Kd8 {[%clk 0:00:15]} 51. Qb8+ {[%clk 0:00:01]}  Ke7 {[%clk 0:00:15]} 52. Qxb7+ {[%clk 0:00:02]}  Kf6 {[%clk 0:00:15]} 53. Qe4 {[%clk 0:00:03]}  Kg7 {[%clk 0:00:13]} 54. Qe5+ {[%clk 0:00:03]}  Kf8 {[%clk 0:00:12]} 55. g4 {[%clk 0:00:03]}  Qg5 {[%clk 0:00:09]} 56. a4 {[%clk 0:00:02]}  Re7 {[%clk 0:00:06]} 57. Qh8+ {[%clk 0:00:02]}  Kf7 {[%clk 0:00:07]} 58. Qd4 {[%clk 0:00:01]}  Kf8 {[%clk 0:00:06]} 59. Qd8+ {[%clk 0:00:01]}  Kg7 {[%clk 0:00:05]} 60. Qd4+ {[%clk 0:00:01]}  Kf8 {[%clk 0:00:05]} 61. Qd1 {[%clk 0:00:02]}  Rf7 {[%clk 0:00:04]} 62. Qf3 {[%clk 0:00:03]}  Kg7 {[%clk 0:00:04]} 63. Qg3 {[%clk 0:00:03]}  Qf6 {[%clk 0:00:03]} 64. Qe3 {[%clk 0:00:04]}  Re7 {[%clk 0:00:03]} 65. Qc3 {[%clk 0:00:04]}  Qxc3 {[%clk 0:00:03]} 66. bxc3 {[%clk 0:00:05]}  Rc7 {[%clk 0:00:04]} 67. a5 {[%clk 0:00:05]}  Rxc3 {[%clk 0:00:04]} 68. a6 {[%clk 0:00:05]}  Ra3 {[%clk 0:00:05]} 69. Bc8 {[%clk 0:00:06]}  Kf6 {[%clk 0:00:04]} 70. f3 {[%clk 0:00:06]}  Kg5 {[%clk 0:00:05]} 71. Kg3 {[%clk 0:00:07]}  Rb3 {[%clk 0:00:06]} 72. Bb7 {[%clk 0:00:06]}  Ra3 {[%clk 0:00:04]} 73. Kf2 {[%clk 0:00:06]}  Kf4 {[%clk 0:00:04]} 74. Ke2 {[%clk 0:00:07]}  Ra2+ {[%clk 0:00:05]} 75. Kd3 {[%clk 0:00:07]}  Ra4 {[%clk 0:00:05]} 76. Kc3 {[%clk 0:00:07]}  Ke5 {[%clk 0:00:06]} 77. Kb3 {[%clk 0:00:07]}  Ra1 {[%clk 0:00:05]} 78. Kb4 {[%clk 0:00:08]}  Kd6 {[%clk 0:00:06]} 79. Kb5 {[%clk 0:00:08]}  Rb1+ {[%clk 0:00:06]} 80. Kc4 {[%clk 0:00:08]}  Ra1 {[%clk 0:00:06]} 81. Kd4 {[%clk 0:00:09]}  Ra4+ {[%clk 0:00:07]} 82. Ke3 {[%clk 0:00:09]}  Ke5 {[%clk 0:00:07]} 83. f4+ {[%clk 0:00:08]}  Kf6 {[%clk 0:00:06]} 84. a7 {[%clk 0:00:09]}  Rxa7 {[%clk 0:00:04]} 85. g5+ {[%clk 0:00:09]}  Kg7 {[%clk 0:00:04]} 86. Be4 {[%clk 0:00:10]}  Ra3+ {[%clk 0:00:04]} 87. Kd4 {[%clk 0:00:10]}  Ra4+ {[%clk 0:00:04]} 88. Ke5 {[%clk 0:00:11]}  Ra5+ {[%clk 0:00:05]} 89. Bd5 {[%clk 0:00:11]}  Ra1 {[%clk 0:00:05]} 90. f5 {[%clk 0:00:12]}  Re1+ {[%clk 0:00:06]} 91. Be4 {[%clk 0:00:12]}  Rg1 {[%clk 0:00:03]} 92. f6+ {[%clk 0:00:13]}  Kf7 {[%clk 0:00:04]} 93. Kf5 {[%clk 0:00:12]}  Rf1+ {[%clk 0:00:04]} 94. Kg4 {[%clk 0:00:13]}  Re1 {[%clk 0:00:04]} 95. Kf4 {[%clk 0:00:11]}  Rf1+ {[%clk 0:00:04]} 96. Ke5 {[%clk 0:00:11]}  Re1 {[%clk 0:00:04]} 97. Kf4 {[%clk 0:00:09]}  Rf1+ {[%clk 0:00:04]} 98. Bf3 {[%clk 0:00:09]}  Kg6 {[%clk 0:00:04]} 99. Kg4 {[%clk 0:00:08]}  Rg1+ {[%clk 0:00:05]} 100. Kf4 {[%clk 0:00:08]}  Rf1 {[%clk 0:00:04]} 101. Ke3 {[%clk 0:00:08]}  Re1+ {[%clk 0:00:03]} 102. Be2 {[%clk 0:00:07]}  Ra1 {[%clk 0:00:02]} 103. Bd3+ {[%clk 0:00:07]}  Kxg5 {[%clk 0:00:03]} 104. f7 {[%clk 0:00:08]}  Ra8 {[%clk 0:00:04]} 105. Bc4 {[%clk 0:00:08]}  Rf8 {[%clk 0:00:05]} 106. Kd4 {[%clk 0:00:08]}  Kf6 {[%clk 0:00:05]} 107. Kc5 {[%clk 0:00:08]}  Ke7 {[%clk 0:00:06]} 108. Kd4 {[%clk 0:00:08]}  Rc8 {[%clk 0:00:07]} 109. Bd5 {[%clk 0:00:08]}  Rd8 {[%clk 0:00:08]} 110. Ke5 {[%clk 0:00:09]}  Rh8 {[%clk 0:00:05]} 111. Kf5 {[%clk 0:00:08]}  Rh5+ {[%clk 0:00:05]} 112. Ke4 {[%clk 0:00:08]}  Rh4+ {[%clk 0:00:05]} 113. Ke5 {[%clk 0:00:09]}  Rh5+ {[%clk 0:00:06]} 114. Ke4 {[%clk 0:00:09]}  Rg5 {[%clk 0:00:06]} 115. Bc4 {[%clk 0:00:08]}  Rc5 {[%clk 0:00:07]} 116. Kd4 {[%clk 0:00:08]}  Ra5 {[%clk 0:00:07]} 117. Bd5 {[%clk 0:00:09]}  Ra4+ {[%clk 0:00:06]} 118. Ke5 {[%clk 0:00:09]}  Ra1 {[%clk 0:00:06]} 119. Kd4 {[%clk 0:00:09]}  Rd1+ {[%clk 0:00:04]} 120. Ke5 {[%clk 0:00:10]}  Re1+ {[%clk 0:00:05]} 121. Kd4 {[%clk 0:00:10]}  Rf1 {[%clk 0:00:06]} 122. Ke5 {[%clk 0:00:10]}  Re1+ {[%clk 0:00:06]} 123. Kd4 {[%clk 0:00:11]}  Rf1 {[%clk 0:00:07]} 124. Ke5 {[%clk 0:00:11]}  Rf6 {[%clk 0:00:07]} 125. Kd4 {[%clk 0:00:11]}  Kd6 {[%clk 0:00:08]} 126. Bc4 {[%clk 0:00:09]}  Rf4+ {[%clk 0:00:08]} 127. Kc3 {[%clk 0:00:10]}  Ke5 {[%clk 0:00:09]} 128. Kb4 {[%clk 0:00:07]}  Kd6 {[%clk 0:00:09]} 129. Kc3 {[%clk 0:00:06]}  Kc5 {[%clk 0:00:09]} 130. Be6 {[%clk 0:00:05]}  Rf3+ {[%clk 0:00:08]} 131. Kd2 {[%clk 0:00:06]}  Kd6 {[%clk 0:00:08]} 132. Bc4 {[%clk 0:00:05]}  Ke5 {[%clk 0:00:08]} 133. Ke2 {[%clk 0:00:05]}  Rf6 {[%clk 0:00:08]} 134. Ke3 {[%clk 0:00:05]}  Kd6 {[%clk 0:00:07]} 135. Kd4 {[%clk 0:00:05]}  Rf4+ {[%clk 0:00:06]} 136. Ke3 {[%clk 0:00:05]}  Ke5 {[%clk 0:00:06]} 137. Kd3 {[%clk 0:00:04]}  Rd4+ {[%clk 0:00:04]} 138. Ke3 {[%clk 0:00:03]}  Rf4 {[%clk 0:00:05]} 139. Kd3 {[%clk 0:00:03]}  Rf6 {[%clk 0:00:06]} 140. Kc3 {[%clk 0:00:04]}  Kd6 {[%clk 0:00:06]} 141. Kd3 {[%clk 0:00:04]}  Kc5 {[%clk 0:00:06]} 142. Bb3 {[%clk 0:00:04]}  Rf3+ {[%clk 0:00:04]} 143. Ke4 {[%clk 0:00:05]}  Rf1 {[%clk 0:00:04]} 144. Ke5 {[%clk 0:00:05]}  Re1+ {[%clk 0:00:05]} 145. Kf6 {[%clk 0:00:05]}  Rf1+ {[%clk 0:00:05]} 146. Ke7 {[%clk 0:00:05]}  Rxf7+ {[%clk 0:00:05]} 147. Bxf7 {[%clk 0:00:06]} 1/2-1/2


[Site "https://www.chess.com"]

[Event "Titled Tuesday Blitz November 15 Early 2022"]
[White "Harshavardhan G B"]
[Black "Gabdrakhmanov, Azat"]
[WhiteFideId "25059009"]
[BlackFideId "34189197"]
[WhiteElo "2797"]
[BlackElo "2581"]
[Result "0-1"]
[Round "10"]
[TimeControl "180+1"]
[Date "2022.11.16"]
[WhiteClock "0:00:51"]
[BlackClock "0:00:22"]

1. d4 {[%clk 0:03:00]}  Nf6 {[%clk 0:02:59]} 2. c4 {[%clk 0:03:00]}  g6 {[%clk 0:02:59]} 3. Nc3 {[%clk 0:02:59]}  Bg7 {[%clk 0:03:00]} 4. e4 {[%clk 0:02:59]}  O-O {[%clk 0:03:00]} 5. Nf3 {[%clk 0:02:57]}  d6 {[%clk 0:03:01]} 6. Be2 {[%clk 0:02:57]}  e5 {[%clk 0:03:01]} 7. d5 {[%clk 0:02:57]}  Na6 {[%clk 0:02:58]} 8. Nd2 {[%clk 0:02:56]}  Nc5 {[%clk 0:02:58]} 9. g4 {[%clk 0:02:55]}  a5 {[%clk 0:02:58]} 10. h4 {[%clk 0:02:54]}  c6 {[%clk 0:02:58]} 11. g5 {[%clk 0:02:53]}  Ne8 {[%clk 0:02:56]} 12. Nb3 {[%clk 0:02:51]}  Nxb3 {[%clk 0:02:45]} 13. Qxb3 {[%clk 0:02:52]}  f5 {[%clk 0:02:38]} 14. gxf6 {[%clk 0:02:49]}  Qxf6 {[%clk 0:02:36]} 15. Be3 {[%clk 0:02:47]}  Qf7 {[%clk 0:02:10]} 16. O-O-O {[%clk 0:02:40]}  Nf6 {[%clk 0:02:03]} 17. Rdg1 {[%clk 0:02:35]}  cxd5 {[%clk 0:01:51]} 18. cxd5 {[%clk 0:02:33]}  Bd7 {[%clk 0:01:47]} 19. h5 {[%clk 0:02:30]}  a4 {[%clk 0:01:42]} 20. Qa3 {[%clk 0:02:28]}  Rfc8 {[%clk 0:01:34]} 21. Kb1 {[%clk 0:02:26]}  Rxc3 {[%clk 0:01:28]} 22. Qxc3 {[%clk 0:02:12]}  Nxe4 {[%clk 0:01:27]} 23. Qb4 {[%clk 0:02:12]}  Bf5 {[%clk 0:01:23]} 24. hxg6 {[%clk 0:01:57]}  hxg6 {[%clk 0:01:19]} 25. Ka1 {[%clk 0:01:49]}  a3 {[%clk 0:01:17]} 26. f3 {[%clk 0:01:44]}  axb2+ {[%clk 0:01:14]} 27. Qxb2 {[%clk 0:01:42]}  Nc5 {[%clk 0:01:03]} 28. Bc4 {[%clk 0:01:36]}  Na4 {[%clk 0:00:55]} 29. Qd2 {[%clk 0:01:27]}  Qf6 {[%clk 0:00:31]} 30. Bg5 {[%clk 0:01:15]}  Qf7 {[%clk 0:00:26]} 31. Bh6 {[%clk 0:01:10]}  e4+ {[%clk 0:00:21]} 32. Kb1 {[%clk 0:01:01]}  e3+ {[%clk 0:00:21]} 33. Qd3 {[%clk 0:00:57]}  Bxd3+ {[%clk 0:00:20]} 34. Bxd3 {[%clk 0:00:58]}  Qf6 {[%clk 0:00:20]} 35. Bxg7 {[%clk 0:00:57]}  Kxg7 {[%clk 0:00:20]} 36. Rxg6+ {[%clk 0:00:56]}  Qxg6 {[%clk 0:00:20]} 37. Bxg6 {[%clk 0:00:56]}  Kxg6 {[%clk 0:00:21]} 38. Re1 {[%clk 0:00:56]}  Nc3+ {[%clk 0:00:21]} 39. Kc2 {[%clk 0:00:56]}  Nxd5 {[%clk 0:00:22]} 40. Kd3 {[%clk 0:00:56]}  Kf5 {[%clk 0:00:23]} 41. Rb1 {[%clk 0:00:52]}  Rxa2 {[%clk 0:00:21]} 42. Rxb7 {[%clk 0:00:51]}  e2 {[%clk 0:00:21]} 43. Rb1 {[%clk 0:00:50]}  Nf4+ {[%clk 0:00:21]} 44. Ke3 {[%clk 0:00:50]}  Ng2+ {[%clk 0:00:22]} 45. Kf2 {[%clk 0:00:51]}  e1=Q# {[%clk 0:00:22]} 0-1


[Site "https://www.chess.com"]

[Event "Titled Tuesday Blitz November 15 Early 2022"]
[White "Hartikainen, Jarmo"]
[Black "Levitan, Caleb Levi"]
[WhiteFideId "503134"]
[BlackFideId "14332620"]
[WhiteElo "2198"]
[BlackElo "1963"]
[Result "0-1"]
[Round "10"]
[TimeControl "180+1"]
[Date "2022.11.16"]
[WhiteClock "0:00:13"]
[BlackClock "0:00:10"]

1. e4 {[%clk 0:03:00]}  c5 {[%clk 0:02:59]} 2. c3 {[%clk 0:03:01]}  Nf6 {[%clk 0:02:53]} 3. e5 {[%clk 0:03:01]}  Nd5 {[%clk 0:02:53]} 4. d4 {[%clk 0:03:01]}  cxd4 {[%clk 0:02:51]} 5. Nf3 {[%clk 0:03:02]}  Nc6 {[%clk 0:02:49]} 6. cxd4 {[%clk 0:03:02]}  d6 {[%clk 0:02:49]} 7. Nc3 {[%clk 0:03:02]}  Nxc3 {[%clk 0:02:47]} 8. bxc3 {[%clk 0:03:02]}  dxe5 {[%clk 0:02:48]} 9. d5 {[%clk 0:03:01]}  Nb8 {[%clk 0:02:39]} 10. Nxe5 {[%clk 0:02:53]}  Nd7 {[%clk 0:02:38]} 11. Bb5 {[%clk 0:02:27]}  a6 {[%clk 0:02:35]} 12. Qf3 {[%clk 0:02:11]}  Qc7 {[%clk 0:01:35]} 13. Bxd7+ {[%clk 0:01:17]}  Bxd7 {[%clk 0:01:33]} 14. Nxd7 {[%clk 0:01:11]}  Qxd7 {[%clk 0:01:29]} 15. O-O {[%clk 0:01:11]}  g6 {[%clk 0:01:28]} 16. Ba3 {[%clk 0:00:54]}  Qa4 {[%clk 0:01:12]} 17. c4 {[%clk 0:00:42]}  Bg7 {[%clk 0:01:10]} 18. Rac1 {[%clk 0:00:38]}  O-O {[%clk 0:00:43]} 19. Bxe7 {[%clk 0:00:37]}  Rfc8 {[%clk 0:00:43]} 20. d6 {[%clk 0:00:37]}  Qd7 {[%clk 0:00:30]} 21. c5 {[%clk 0:00:35]}  Rc6 {[%clk 0:00:19]} 22. Rfe1 {[%clk 0:00:30]}  Rac8 {[%clk 0:00:18]} 23. Bf6 {[%clk 0:00:25]}  Rxc5 {[%clk 0:00:16]} 24. Rxc5 {[%clk 0:00:23]}  Rxc5 {[%clk 0:00:16]} 25. Bxg7 {[%clk 0:00:21]}  Kxg7 {[%clk 0:00:16]} 26. h3 {[%clk 0:00:21]}  Qxd6 {[%clk 0:00:15]} 27. Qxb7 {[%clk 0:00:19]}  Rc2 {[%clk 0:00:14]} 28. Qf3 {[%clk 0:00:15]}  Rxa2 {[%clk 0:00:11]} 29. Qc3+ {[%clk 0:00:15]}  Qf6 {[%clk 0:00:11]} 30. Qb3 {[%clk 0:00:13]}  Qxf2+ {[%clk 0:00:10]} 0-1


[Site "https://www.chess.com"]

[Event "Titled Tuesday Blitz November 15 Early 2022"]
[White "Ibadov, Dashgyn"]
[Black "Tarasova, Viktoriya"]
[WhiteFideId "24107514"]
[BlackFideId "4175840"]
[WhiteElo "2208"]
[BlackElo "2182"]
[Result "1-0"]
[Round "10"]
[TimeControl "180+1"]
[Date "2022.11.16"]
[WhiteClock "0:00:27"]
[BlackClock "0:00:13"]

1. e4 {[%clk 0:03:00]}  e5 {[%clk 0:02:58]} 2. Nf3 {[%clk 0:03:00]}  Nc6 {[%clk 0:02:58]} 3. d4 {[%clk 0:03:00]}  exd4 {[%clk 0:02:58]} 4. Nxd4 {[%clk 0:03:01]}  Nf6 {[%clk 0:02:58]} 5. Nc3 {[%clk 0:02:57]}  Bb4 {[%clk 0:02:57]} 6. Nxc6 {[%clk 0:02:58]}  bxc6 {[%clk 0:02:57]} 7. Bd3 {[%clk 0:02:58]}  O-O {[%clk 0:02:57]} 8. O-O {[%clk 0:02:58]}  d5 {[%clk 0:02:57]} 9. exd5 {[%clk 0:02:59]}  cxd5 {[%clk 0:02:58]} 10. Qf3 {[%clk 0:02:57]}  c6 {[%clk 0:02:56]} 11. Bg5 {[%clk 0:02:56]}  Bd6 {[%clk 0:02:55]} 12. Rae1 {[%clk 0:02:52]}  Rb8 {[%clk 0:02:54]} 13. Nd1 {[%clk 0:02:51]}  h6 {[%clk 0:02:50]} 14. Bxf6 {[%clk 0:02:50]}  Qxf6 {[%clk 0:02:49]} 15. Qxf6 {[%clk 0:02:50]}  gxf6 {[%clk 0:02:50]} 16. b3 {[%clk 0:02:51]}  Be6 {[%clk 0:02:46]} 17. Ne3 {[%clk 0:02:51]}  Rfe8 {[%clk 0:02:38]} 18. Nf5 {[%clk 0:02:41]}  Bxf5 {[%clk 0:02:26]} 19. Bxf5 {[%clk 0:02:42]}  c5 {[%clk 0:02:27]} 20. g3 {[%clk 0:02:29]}  Re5 {[%clk 0:02:22]} 21. Bg4 {[%clk 0:02:16]}  Rbe8 {[%clk 0:02:20]} 22. Rd1 {[%clk 0:02:12]}  Bc7 {[%clk 0:02:17]} 23. Bf3 {[%clk 0:02:12]}  d4 {[%clk 0:02:17]} 24. Bc6 {[%clk 0:02:00]}  R8e6 {[%clk 0:02:14]} 25. Bb5 {[%clk 0:02:00]}  a5 {[%clk 0:02:10]} 26. Bc4 {[%clk 0:01:58]}  Re8 {[%clk 0:02:08]} 27. a4 {[%clk 0:01:53]}  Kg7 {[%clk 0:02:08]} 28. Kg2 {[%clk 0:01:48]}  f5 {[%clk 0:01:58]} 29. Rd3 {[%clk 0:01:22]}  Re2 {[%clk 0:01:45]} 30. Rc1 {[%clk 0:01:21]}  Kg6 {[%clk 0:00:56]} 31. Rf3 {[%clk 0:01:17]}  R2e5 {[%clk 0:00:41]} 32. Bd3 {[%clk 0:01:17]}  Kf6 {[%clk 0:00:21]} 33. g4 {[%clk 0:01:08]}  Rg8 {[%clk 0:00:19]} 34. Bxf5 {[%clk 0:00:59]}  h5 {[%clk 0:00:14]} 35. Bh7+ {[%clk 0:00:56]}  Kg7 {[%clk 0:00:13]} 36. Bxg8 {[%clk 0:00:56]}  Kxg8 {[%clk 0:00:13]} 37. Rf5 {[%clk 0:00:38]}  Rxf5 {[%clk 0:00:12]} 38. gxf5 {[%clk 0:00:38]}  Bf4 {[%clk 0:00:13]} 39. Re1 {[%clk 0:00:36]}  Kg7 {[%clk 0:00:13]} 40. Re8 {[%clk 0:00:30]}  Kf6 {[%clk 0:00:13]} 41. Rc8 {[%clk 0:00:30]}  Kxf5 {[%clk 0:00:12]} 42. Rxc5+ {[%clk 0:00:27]}  Ke4 {[%clk 0:00:13]} 43. Rxa5 {[%clk 0:00:27]} 1-0


[Site "https://www.chess.com"]

[Event "Titled Tuesday Blitz November 15 Early 2022"]
[White "Indjic, Aleksandar"]
[Black "Timofeev, Artyom"]
[WhiteFideId "911925"]
[BlackFideId "4140419"]
[WhiteElo "2592"]
[BlackElo "2586"]
[Result "0-1"]
[Round "10"]
[TimeControl "180+1"]
[Date "2022.11.15"]
[WhiteClock "0:00:23"]
[BlackClock "0:01:32"]

1. d4 {[%clk 0:02:58]}  d5 {[%clk 0:02:59]} 2. c4 {[%clk 0:02:58]}  e6 {[%clk 0:02:59]} 3. Nf3 {[%clk 0:02:58]}  c6 {[%clk 0:02:58]} 4. Qc2 {[%clk 0:02:57]}  Nf6 {[%clk 0:02:58]} 5. Nbd2 {[%clk 0:02:57]}  Be7 {[%clk 0:02:52]} 6. g4 {[%clk 0:02:55]}  O-O {[%clk 0:02:50]} 7. g5 {[%clk 0:02:55]}  Nfd7 {[%clk 0:02:50]} 8. h4 {[%clk 0:02:52]}  c5 {[%clk 0:02:50]} 9. cxd5 {[%clk 0:02:52]}  exd5 {[%clk 0:02:50]} 10. dxc5 {[%clk 0:02:32]}  Nxc5 {[%clk 0:02:44]} 11. b4 {[%clk 0:02:30]}  Ne4 {[%clk 0:02:39]} 12. Nxe4 {[%clk 0:02:17]}  dxe4 {[%clk 0:02:39]} 13. Qxe4 {[%clk 0:02:17]}  Nc6 {[%clk 0:02:40]} 14. a3 {[%clk 0:02:17]}  Be6 {[%clk 0:02:34]} 15. Bb2 {[%clk 0:02:08]}  Bd5 {[%clk 0:02:32]} 16. Qg4 {[%clk 0:02:08]}  Qb6 {[%clk 0:02:20]} 17. Bg2 {[%clk 0:01:26]}  a5 {[%clk 0:02:17]} 18. O-O {[%clk 0:01:16]}  axb4 {[%clk 0:02:16]} 19. a4 {[%clk 0:01:16]}  b3 {[%clk 0:02:09]} 20. h5 {[%clk 0:01:09]}  Qb4 {[%clk 0:02:06]} 21. Qg3 {[%clk 0:00:53]}  Bd6 {[%clk 0:01:57]} 22. Qh4 {[%clk 0:00:53]}  Qxh4 {[%clk 0:01:43]} 23. Nxh4 {[%clk 0:00:53]}  Bxg2 {[%clk 0:01:43]} 24. Kxg2 {[%clk 0:00:54]}  Rfe8 {[%clk 0:01:35]} 25. Nf5 {[%clk 0:00:53]}  Be5 {[%clk 0:01:35]} 26. Rfb1 {[%clk 0:00:48]}  g6 {[%clk 0:01:34]} 27. hxg6 {[%clk 0:00:23]}  hxg6 {[%clk 0:01:32]} 0-1


[Site "https://www.chess.com"]

[Event "Titled Tuesday Blitz November 15 Early 2022"]
[White "Jarmula, Lukasz"]
[Black "Gokerkan, Cem Kaan"]
[WhiteFideId "1160664"]
[BlackFideId "6336760"]
[WhiteElo "2357"]
[BlackElo "2365"]
[Result "0-1"]
[Round "10"]
[TimeControl "180+1"]
[Date "2022.11.15"]
[WhiteClock "0:00:13"]
[BlackClock "0:00:15"]

1. b3 {[%clk 0:03:00]}  a5 {[%clk 0:02:59]} 2. a4 {[%clk 0:03:00]}  d5 {[%clk 0:02:57]} 3. Bb2 {[%clk 0:02:59]}  Bf5 {[%clk 0:02:58]} 4. d3 {[%clk 0:02:59]}  e6 {[%clk 0:02:58]} 5. Nd2 {[%clk 0:02:59]}  Nf6 {[%clk 0:02:58]} 6. g3 {[%clk 0:03:00]}  h6 {[%clk 0:02:55]} 7. Bg2 {[%clk 0:03:00]}  c6 {[%clk 0:02:54]} 8. e4 {[%clk 0:03:00]}  Bh7 {[%clk 0:02:54]} 9. Nh3 {[%clk 0:02:59]}  Be7 {[%clk 0:02:54]} 10. O-O {[%clk 0:02:59]}  Nbd7 {[%clk 0:02:54]} 11. e5 {[%clk 0:02:56]}  Ng8 {[%clk 0:02:53]} 12. Qg4 {[%clk 0:02:55]}  Bf8 {[%clk 0:02:48]} 13. Nf4 {[%clk 0:02:50]}  Ne7 {[%clk 0:02:34]} 14. Qe2 {[%clk 0:02:32]}  Nf5 {[%clk 0:02:07]} 15. Nf3 {[%clk 0:02:29]}  Be7 {[%clk 0:02:06]} 16. Nd4 {[%clk 0:02:14]}  Nxd4 {[%clk 0:02:01]} 17. Bxd4 {[%clk 0:02:14]}  O-O {[%clk 0:02:01]} 18. Bh3 {[%clk 0:02:10]}  c5 {[%clk 0:01:51]} 19. Bb2 {[%clk 0:02:09]}  Ra6 {[%clk 0:01:41]} 20. Bg2 {[%clk 0:01:57]}  Bg5 {[%clk 0:01:41]} 21. Nh5 {[%clk 0:01:51]}  Bg6 {[%clk 0:01:33]} 22. f4 {[%clk 0:01:50]}  Be7 {[%clk 0:01:32]} 23. Bh3 {[%clk 0:01:43]}  c4 {[%clk 0:01:27]} 24. d4 {[%clk 0:01:31]}  cxb3 {[%clk 0:01:27]} 25. cxb3 {[%clk 0:01:29]}  Rb6 {[%clk 0:01:27]} 26. f5 {[%clk 0:01:18]}  exf5 {[%clk 0:01:23]} 27. Bxf5 {[%clk 0:01:18]}  Bxh5 {[%clk 0:01:05]} 28. Qxh5 {[%clk 0:01:15]}  g6 {[%clk 0:01:06]} 29. Qxh6 {[%clk 0:01:00]}  gxf5 {[%clk 0:01:06]} 30. Qh5 {[%clk 0:00:55]}  Rg6 {[%clk 0:00:59]} 31. Rxf5 {[%clk 0:00:51]}  Qb6 {[%clk 0:00:53]} 32. Raf1 {[%clk 0:00:45]}  Rh6 {[%clk 0:00:53]} 33. Qf3 {[%clk 0:00:39]}  Qe6 {[%clk 0:00:50]} 34. Bc1 {[%clk 0:00:36]}  Rh7 {[%clk 0:00:49]} 35. Rf4 {[%clk 0:00:31]}  f6 {[%clk 0:00:40]} 36. Rg4+ {[%clk 0:00:27]}  Kh8 {[%clk 0:00:38]} 37. Rg6 {[%clk 0:00:25]}  Qh3 {[%clk 0:00:30]} 38. Qe2 {[%clk 0:00:15]}  fxe5 {[%clk 0:00:26]} 39. Rxf8+ {[%clk 0:00:15]}  Bxf8 {[%clk 0:00:24]} 40. dxe5 {[%clk 0:00:15]}  Bc5+ {[%clk 0:00:24]} 41. Kh1 {[%clk 0:00:13]}  Qf5 {[%clk 0:00:17]} 42. e6 {[%clk 0:00:13]}  Qxg6 {[%clk 0:00:15]} 43. Bb2+ {[%clk 0:00:13]}  d4 {[%clk 0:00:14]} 44. exd7 {[%clk 0:00:13]}  Rxd7 {[%clk 0:00:12]} 45. Qe5+ {[%clk 0:00:13]}  Kh7 {[%clk 0:00:10]} 46. Qxc5 {[%clk 0:00:13]}  Qc6+ {[%clk 0:00:11]} 47. Qxc6 {[%clk 0:00:13]}  bxc6 {[%clk 0:00:12]} 48. Bc1 {[%clk 0:00:13]}  d3 {[%clk 0:00:12]} 49. Bd2 {[%clk 0:00:14]}  Re7 {[%clk 0:00:13]} 50. Bxa5 {[%clk 0:00:13]}  Re2 {[%clk 0:00:14]} 51. Kg1 {[%clk 0:00:13]}  d2 {[%clk 0:00:14]} 52. Bxd2 {[%clk 0:00:13]}  Rxd2 {[%clk 0:00:15]} 0-1


[Site "https://www.chess.com"]